[Event "*** Titled Tuesday 3|2 Blitz"]
[Site "Chess.com"]
[Date "2015.11.03"]
[Round "1"]
[White "BjarkeSahl"]
[Black "VovAn1991"]
[Result "0-1"]
[WhiteElo "2147"]
[BlackElo "2454"]
[TimeControl "180+2"]
[EndTime "11:07:36 PST"]
[Termination "VovAn1991 won by resignation"]

1. e4 {[%clk 0:03:01.3]} 1... c5 {[%clk 0:03:00.7]} 2. Nf3 {[%clk 0:03:01.7]}
2... d6 {[%clk 0:03:01.8]} 3. d4 {[%clk 0:03:02.6]} 3... cxd4 {[%clk 0:03:03.7]}
4. Nxd4 {[%clk 0:03:03.9]} 4... Nf6 {[%clk 0:03:04.8]} 5. Bd3 {[%clk 0:03:03.3]}
5... Nc6 {[%clk 0:03:02.9]} 6. Nxc6 {[%clk 0:03:03.4]} 6... bxc6 {[%clk
0:03:04.8]} 7. O-O {[%clk 0:03:04.9]} 7... g6 {[%clk 0:03:04.5]} 8. f4 {[%clk
0:03:05.9]} 8... Ba6 {[%clk 0:03:05.3]} 9. c4 {[%clk 0:02:48.7]} 9... Bg7 {[%clk
0:03:04.1]} 10. Nc3 {[%clk 0:02:49.2]} 10... O-O {[%clk 0:03:04.8]} 11. Kh1
{[%clk 0:02:50.6]} 11... Rb8 {[%clk 0:03:01.7]} 12. Qe2 {[%clk 0:02:47.5]} 12...
Nd7 {[%clk 0:02:59.1]} 13. Be3 {[%clk 0:02:46.2]} 13... Qa5 {[%clk 0:02:56.3]}
14. Rfc1 {[%clk 0:02:36.3]} 14... Nc5 {[%clk 0:02:56.5]} 15. Bxc5 {[%clk
0:02:34.1]} 15... Qxc5 {[%clk 0:02:58.4]} 16. b3 {[%clk 0:02:32.9]} 16... Qa5
{[%clk 0:02:51]} 17. Qc2 {[%clk 0:02:32.9]} 17... Rbc8 {[%clk 0:02:23.5]} 18.
Rab1 {[%clk 0:02:31.4]} 18... Qb4 {[%clk 0:02:22.2]} 19. Nd1 {[%clk 0:02:26]}
19... d5 {[%clk 0:02:17.2]} 20. Ne3 {[%clk 0:02:20.8]} 20... e6 {[%clk
0:02:14.2]} 21. f5 {[%clk 0:02:20.2]} 21... dxe4 {[%clk 0:02:13]} 22. Bxe4
{[%clk 0:02:15]} 22... exf5 {[%clk 0:02:12.7]} 23. Nxf5 {[%clk 0:02:16.5]} 23...
gxf5 {[%clk 0:02:12.2]} 24. Bxf5 {[%clk 0:02:18]} 24... Rcd8 {[%clk 0:02:08.3]}
25. Bxh7+ {[%clk 0:02:13.6]} 25... Kh8 {[%clk 0:02:09.3]} 26. Bd3 {[%clk
0:02:14.5]} 26... Rd6 {[%clk 0:02:04]} 27. Rd1 {[%clk 0:02:12.9]} 27... Rh6
{[%clk 0:01:57.8]} 28. Be4 {[%clk 0:02:06.2]} 28... Qc5 {[%clk 0:01:55.7]} 29.
h3 {[%clk 0:01:46.3]} 29... Bc8 {[%clk 0:01:53.1]} 30. Qd3 {[%clk 0:01:46.4]}
30... a5 {[%clk 0:01:44.4]} 31. Rf1 {[%clk 0:01:46.5]} 31... Qg5 {[%clk
0:01:17.3]} 32. Bf5 {[%clk 0:01:40.6]} 32... Rd8 {[%clk 0:01:13.8]} 33. Qf3
{[%clk 0:01:39.1]} 33... Rf6 {[%clk 0:01:03.9]} 34. g4 {[%clk 0:01:24.1]} 34...
Bxf5 {[%clk 0:01:04.4]} 35. gxf5 {[%clk 0:01:24.4]} 35... Rh6 {[%clk 0:01:01.4]}
36. Rbe1 {[%clk 0:01:22]} 36... Bf6 {[%clk 0:00:58.3]} 37. Rg1 {[%clk
0:01:18.8]} 37... Qh4 {[%clk 0:00:58.3]} 38. Rg4 {[%clk 0:01:18.6]} 38... Qxh3+
{[%clk 0:00:57.2]} 39. Qxh3 {[%clk 0:01:19.8]} 39... Rxh3+ {[%clk 0:00:59.1]}
40. Kg2 {[%clk 0:01:21.4]} 40... Rh5 {[%clk 0:00:56]} 41. Rf1 {[%clk 0:01:21]}
41... Rd2+ {[%clk 0:00:56.2]} 42. Kf3 {[%clk 0:01:05.2]} 42... Rxf5+ {[%clk
0:00:53.8]} 43. Rf4 {[%clk 0:01:06.2]} 43... Rxf4+ {[%clk 0:00:54.2]} 44. Kxf4
{[%clk 0:01:07.4]} 44... Rxa2 {[%clk 0:00:55.1]} 45. Ke4 {[%clk 0:01:06.8]}
45... Kg7 {[%clk 0:00:55.1]} 0-1

[Event "*** Titled Tuesday 3|2 Blitz"]
[Site "Chess.com"]
[Date "2015.11.03"]
[Round "1"]
[White "AlexanderL"]
[Black "kleinebeer98"]
[Result "1-0"]
[WhiteElo "2539"]
[BlackElo "2227"]
[TimeControl "180+2"]
[EndTime "11:07:39 PST"]
[Termination "AlexanderL won by resignation"]

1. d4 {[%clk 0:02:53.5]} 1... Nf6 {[%clk 0:03:00.3]} 2. c4 {[%clk 0:02:53.8]}
2... e6 {[%clk 0:03:01.7]} 3. Nc3 {[%clk 0:02:54.6]} 3... Bb4 {[%clk 0:03:01.6]}
4. Qc2 {[%clk 0:02:55.6]} 4... d5 {[%clk 0:02:59]} 5. a3 {[%clk 0:02:54.6]} 5...
Bxc3+ {[%clk 0:02:58]} 6. Qxc3 {[%clk 0:02:56.5]} 6... O-O {[%clk 0:02:57.7]} 7.
Nf3 {[%clk 0:02:52.9]} 7... Nbd7 {[%clk 0:02:47.3]} 8. cxd5 {[%clk 0:02:49]}
8... exd5 {[%clk 0:02:46.2]} 9. Bf4 {[%clk 0:02:44.5]} 9... c6 {[%clk
0:02:44.3]} 10. e3 {[%clk 0:02:43.7]} 10... Re8 {[%clk 0:02:39.7]} 11. Bd3
{[%clk 0:02:44.4]} 11... Nf8 {[%clk 0:02:39.1]} 12. O-O {[%clk 0:02:41.3]} 12...
Ng6 {[%clk 0:02:37.4]} 13. Bg5 {[%clk 0:02:38.4]} 13... Qd6 {[%clk 0:02:30.4]}
14. Bxf6 {[%clk 0:02:11.8]} 14... Qxf6 {[%clk 0:02:32.3]} 15. Rfe1 {[%clk
0:01:53]} 15... Bf5 {[%clk 0:02:25.6]} 16. Bf1 {[%clk 0:01:50.3]} 16... Be4
{[%clk 0:02:10.5]} 17. Nd2 {[%clk 0:01:47.3]} 17... Nh4 {[%clk 0:02:04.4]} 18.
f3 {[%clk 0:01:41.4]} 18... Bg6 {[%clk 0:02:00.8]} 19. Kh1 {[%clk 0:01:36.4]}
19... Re7 {[%clk 0:01:57]} 20. Re2 {[%clk 0:01:24.4]} 20... Rae8 {[%clk
0:01:56.2]} 21. Rae1 {[%clk 0:01:19.8]} 21... Nf5 {[%clk 0:01:56]} 22. g3 {[%clk
0:01:17]} 22... Qg5 {[%clk 0:01:41.3]} 23. e4 {[%clk 0:01:13.5]} 23... dxe4
{[%clk 0:01:13]} 24. Nxe4 {[%clk 0:01:13]} 24... Qh6 {[%clk 0:01:13.9]} 25. g4
{[%clk 0:01:12.6]} 25... Nh4 {[%clk 0:00:47.1]} 26. Nf6+ {[%clk 0:01:08.8]}
26... gxf6 {[%clk 0:00:49]} 27. Rxe7 {[%clk 0:01:09.4]} 27... Rxe7 {[%clk
0:00:50.9]} 28. Rxe7 {[%clk 0:01:09.5]} 28... Kg7 {[%clk 0:00:40.8]} 29. Qe3
{[%clk 0:01:08.3]} 29... Qxe3 {[%clk 0:00:39.3]} 30. Rxe3 {[%clk 0:01:05]} 30...
Kf8 {[%clk 0:00:41.2]} 31. Kg1 {[%clk 0:00:54.8]} 31... f5 {[%clk 0:00:42.2]}
32. Kf2 {[%clk 0:00:55.8]} 32... fxg4 {[%clk 0:00:41.2]} 33. fxg4 {[%clk
0:00:56.8]} 33... h5 {[%clk 0:00:42]} 34. Kg3 {[%clk 0:00:55]} 1-0

[Event "*** Titled Tuesday 3|2 Blitz"]
[Site "Chess.com"]
[Date "2015.11.03"]
[Round "1"]
[White "Badouuu"]
[Black "amaidel"]
[Result "0-1"]
[WhiteElo "1935"]
[BlackElo "2338"]
[TimeControl "180+2"]
[EndTime "11:08:05 PST"]
[Termination "amaidel won by resignation"]

1. e4 {[%clk 0:02:59.1]} 1... e6 {[%clk 0:02:55.8]} 2. d4 {[%clk 0:02:58.1]}
2... d5 {[%clk 0:02:57.2]} 3. Nd2 {[%clk 0:02:53.6]} 3... dxe4 {[%clk
0:02:57.3]} 4. Nxe4 {[%clk 0:02:45.2]} 4... Nd7 {[%clk 0:02:58.9]} 5. Bd3 {[%clk
0:02:42.8]} 5... Ngf6 {[%clk 0:02:59.6]} 6. Ng3 {[%clk 0:02:43.9]} 6... b6
{[%clk 0:02:59.3]} 7. Nf3 {[%clk 0:02:44.8]} 7... Bb7 {[%clk 0:03:00.1]} 8. O-O
{[%clk 0:02:46.7]} 8... Be7 {[%clk 0:03:00.4]} 9. Bf4 {[%clk 0:02:41.6]} 9...
O-O {[%clk 0:03:01.4]} 10. c3 {[%clk 0:02:42.8]} 10... c5 {[%clk 0:02:58.6]} 11.
Re1 {[%clk 0:02:41.6]} 11... cxd4 {[%clk 0:02:57]} 12. Nxd4 {[%clk 0:02:43.5]}
12... Nc5 {[%clk 0:02:53.2]} 13. Bc2 {[%clk 0:02:40.6]} 13... Qd5 {[%clk
0:02:53.5]} 14. Nf3 {[%clk 0:02:39.3]} 14... Rad8 {[%clk 0:02:48.1]} 15. Qxd5
{[%clk 0:02:39.9]} 15... Nxd5 {[%clk 0:02:50]} 16. Be5 {[%clk 0:02:30.7]} 16...
Bf6 {[%clk 0:02:50.5]} 17. Bxf6 {[%clk 0:02:31.2]} 17... Nxf6 {[%clk 0:02:50.8]}
18. Ne5 {[%clk 0:02:28.2]} 18... Rd2 {[%clk 0:02:50.8]} 19. Re2 {[%clk
0:02:23.1]} 19... Rfd8 {[%clk 0:02:49.5]} 20. Rae1 {[%clk 0:02:22.9]} 20... g6
{[%clk 0:02:48.3]} 21. Rxd2 {[%clk 0:02:21.7]} 21... Rxd2 {[%clk 0:02:47.9]} 22.
Re2 {[%clk 0:02:23.2]} 22... Rd8 {[%clk 0:02:47]} 23. h3 {[%clk 0:02:19.2]}
23... Ba6 {[%clk 0:02:43]} 24. c4 {[%clk 0:02:06.5]} 24... Bb7 {[%clk
0:02:39.1]} 25. Nf1 {[%clk 0:01:56.9]} 25... Kf8 {[%clk 0:02:34.5]} 26. Rd2
{[%clk 0:01:50.7]} 26... Rxd2 {[%clk 0:02:33.6]} 27. Nxd2 {[%clk 0:01:51.4]}
27... Ke7 {[%clk 0:02:34.4]} 28. Kf1 {[%clk 0:01:45.8]} 28... Ncd7 {[%clk
0:02:35]} 29. Nxd7 {[%clk 0:01:46.3]} 29... Nxd7 {[%clk 0:02:36.9]} 30. Be4
{[%clk 0:01:45.6]} 30... Ba6 {[%clk 0:02:34.6]} 31. Ke2 {[%clk 0:01:36.7]} 31...
Nc5 {[%clk 0:02:34.7]} 32. Bc2 {[%clk 0:01:30.3]} 32... e5 {[%clk 0:02:35.3]}
33. Ke3 {[%clk 0:01:30.5]} 33... f5 {[%clk 0:02:34.5]} 34. b4 {[%clk 0:01:29.9]}
34... Ne6 {[%clk 0:02:35.1]} 35. Bb3 {[%clk 0:01:21.3]} 35... Kd6 {[%clk
0:02:35]} 36. Nf3 {[%clk 0:01:14.9]} 36... Bb7 {[%clk 0:02:34.7]} 37. Ne1 {[%clk
0:01:11.3]} 37... f4+ {[%clk 0:02:29.4]} 38. Kd3 {[%clk 0:01:07.6]} 38... e4+
{[%clk 0:02:30.2]} 39. Kc3 {[%clk 0:01:06.6]} 39... Ke5 {[%clk 0:02:31.1]} 40.
a4 {[%clk 0:01:03.8]} 40... a5 {[%clk 0:02:24.5]} 41. bxa5 {[%clk 0:01:02]}
41... bxa5 {[%clk 0:02:25.1]} 42. f3 {[%clk 0:01:02.1]} 42... Nc5 {[%clk
0:02:24.3]} 43. fxe4 {[%clk 0:01:01.5]} 43... Nxe4+ {[%clk 0:02:24.7]} 44. Kc2
{[%clk 0:00:54.5]} 44... Kd4 {[%clk 0:02:20.1]} 45. Nd3 {[%clk 0:00:48.5]} 45...
g5 {[%clk 0:02:19.1]} 46. Ne1 {[%clk 0:00:47.9]} 46... h6 {[%clk 0:02:16.4]} 47.
Nf3+ {[%clk 0:00:46]} 47... Ke3 {[%clk 0:02:16]} 48. Ne5 {[%clk 0:00:46.6]}
48... Nc5 {[%clk 0:02:08.7]} 49. Ng4+ {[%clk 0:00:39.3]} 49... Ke2 {[%clk
0:02:00.9]} 50. Nxh6 {[%clk 0:00:40.2]} 50... Bxg2 {[%clk 0:02:00.2]} 51. Nf7
{[%clk 0:00:41.1]} 51... f3 {[%clk 0:01:58.3]} 52. Nxg5 {[%clk 0:00:39.7]} 52...
f2 {[%clk 0:01:58.5]} 53. Ne6 {[%clk 0:00:27.9]} 53... Nxe6 {[%clk 0:01:58.3]}
54. c5 {[%clk 0:00:29.1]} 54... Nd4+ {[%clk 0:01:59.3]} 55. Kc3 {[%clk
0:00:29.7]} 55... Nxb3 {[%clk 0:02:01.2]} 56. c6 {[%clk 0:00:30.5]} 56... f1=Q
{[%clk 0:02:03.1]} 57. c7 {[%clk 0:00:31.4]} 57... Qc1+ {[%clk 0:02:04]} 0-1

[Event "*** Titled Tuesday 3|2 Blitz"]
[Site "Chess.com"]
[Date "2015.11.03"]
[Round "1"]
[White "GMHess"]
[Black "stefanodinn"]
[Result "1-0"]
[WhiteElo "2439"]
[BlackElo "2128"]
[TimeControl "180+2"]
[EndTime "11:08:12 PST"]
[Termination "GMHess won by resignation"]

1. b3 {[%clk 0:02:59.4]} 1... d5 {[%clk 0:02:59.2]} 2. Bb2 {[%clk 0:03:01.3]}
2... Bg4 {[%clk 0:02:56.8]} 3. h3 {[%clk 0:03:01.9]} 3... Bh5 {[%clk 0:02:57]}
4. g4 {[%clk 0:03:01.8]} 4... Bg6 {[%clk 0:02:57.6]} 5. Nf3 {[%clk 0:03:03.4]}
5... Nd7 {[%clk 0:02:38.2]} 6. d3 {[%clk 0:02:57.1]} 6... e6 {[%clk 0:02:35.3]}
7. Nbd2 {[%clk 0:02:46.7]} 7... h5 {[%clk 0:02:35.2]} 8. g5 {[%clk 0:02:45.7]}
8... c6 {[%clk 0:02:31]} 9. Rg1 {[%clk 0:02:46.4]} 9... Qb6 {[%clk 0:02:22]} 10.
e3 {[%clk 0:02:32.4]} 10... Ne7 {[%clk 0:01:59.1]} 11. Nh4 {[%clk 0:02:31]}
11... e5 {[%clk 0:01:54.6]} 12. Qe2 {[%clk 0:02:26.6]} 12... O-O-O {[%clk
0:01:42.8]} 13. O-O-O {[%clk 0:02:27.1]} 13... Nf5 {[%clk 0:01:35.1]} 14. Nxg6
{[%clk 0:02:23.4]} 14... fxg6 {[%clk 0:01:35.8]} 15. Nf3 {[%clk 0:02:17.8]}
15... Bd6 {[%clk 0:01:34.9]} 16. e4 {[%clk 0:02:16.1]} 16... Nd4 {[%clk
0:01:29.1]} 17. Nxd4 {[%clk 0:02:11.3]} 17... exd4 {[%clk 0:01:29.8]} 18. exd5
{[%clk 0:01:51.2]} 18... Rde8 {[%clk 0:01:24.9]} 19. Qf3 {[%clk 0:01:48.8]}
19... Rhf8 {[%clk 0:01:22.1]} 20. Qg2 {[%clk 0:01:44.6]} 20... c5 {[%clk
0:01:15.1]} 21. Kb1 {[%clk 0:01:37.4]} 21... Ne5 {[%clk 0:01:14.4]} 22. Be2
{[%clk 0:01:32.9]} 22... Kb8 {[%clk 0:00:58.7]} 23. Rde1 {[%clk 0:01:28.1]}
23... Re7 {[%clk 0:00:58.8]} 24. Bd1 {[%clk 0:01:21.5]} 24... Ref7 {[%clk
0:00:58.2]} 25. Rgf1 {[%clk 0:01:21.9]} 25... a5 {[%clk 0:00:27.8]} 26. Bc1
{[%clk 0:01:10.9]} 26... Nf3 {[%clk 0:00:15.7]} 27. Re6 {[%clk 0:00:52.2]} 27...
c4 {[%clk 0:00:08.2]} 28. dxc4 {[%clk 0:00:48.4]} 28... Qc5 {[%clk 0:00:06.4]}
29. Bxf3 {[%clk 0:00:26.4]} 29... Rxf3 {[%clk 0:00:06.2]} 30. Re8+ {[%clk
0:00:27.9]} 30... Ka7 {[%clk 0:00:04]} 31. Rxf8 {[%clk 0:00:28.4]} 31... Rxf8
{[%clk 0:00:04.4]} 32. f4 {[%clk 0:00:29.6]} 32... a4 {[%clk 0:00:04.9]} 33. Qe4
{[%clk 0:00:30.6]} 33... a3 {[%clk 0:00:04.3]} 34. Rd1 {[%clk 0:00:28]} 1-0

[Event "*** Titled Tuesday 3|2 Blitz"]
[Site "Chess.com"]
[Date "2015.11.03"]
[Round "1"]
[White "Boryboy"]
[Black "StoreySniper"]
[Result "1-0"]
[WhiteElo "2456"]
[BlackElo "2150"]
[TimeControl "180+2"]
[EndTime "11:08:13 PST"]
[Termination "Boryboy won on time"]

1. d4 {[%clk 0:03:00.8]} 1... g6 {[%clk 0:03:01.4]} 2. Nf3 {[%clk 0:02:58.2]}
2... Bg7 {[%clk 0:03:02.8]} 3. g3 {[%clk 0:02:59.4]} 3... c5 {[%clk 0:03:04.3]}
4. Bg2 {[%clk 0:03:00.4]} 4... cxd4 {[%clk 0:03:05.4]} 5. Nxd4 {[%clk
0:03:01.6]} 5... Nc6 {[%clk 0:03:07.3]} 6. Nb3 {[%clk 0:03:01.5]} 6... d6 {[%clk
0:03:05.1]} 7. c4 {[%clk 0:02:57.3]} 7... Bd7 {[%clk 0:03:01.6]} 8. O-O {[%clk
0:02:55.9]} 8... Rc8 {[%clk 0:03:01.8]} 9. c5 {[%clk 0:02:55.9]} 9... Be6 {[%clk
0:02:51]} 10. cxd6 {[%clk 0:02:55.4]} 10... Qxd6 {[%clk 0:02:49.6]} 11. Qxd6
{[%clk 0:02:55.7]} 11... exd6 {[%clk 0:02:50.9]} 12. Rd1 {[%clk 0:02:54.9]}
12... Ke7 {[%clk 0:02:45.9]} 13. Nc3 {[%clk 0:02:50.2]} 13... Bxc3 {[%clk
0:02:45.3]} 14. bxc3 {[%clk 0:02:51]} 14... Nf6 {[%clk 0:02:41.7]} 15. Ba3
{[%clk 0:02:48.2]} 15... Rhd8 {[%clk 0:02:40.1]} 16. Rd2 {[%clk 0:02:33.8]}
16... b6 {[%clk 0:02:32.7]} 17. Rad1 {[%clk 0:02:32.5]} 17... Ne8 {[%clk
0:02:33.9]} 18. Nd4 {[%clk 0:02:21.6]} 18... Nxd4 {[%clk 0:02:30.2]} 19. cxd4
{[%clk 0:02:22.1]} 19... Bc4 {[%clk 0:02:13]} 20. e4 {[%clk 0:02:22]} 20... Kd7
{[%clk 0:02:03.9]} 21. d5 {[%clk 0:02:13.4]} 21... Rb8 {[%clk 0:01:44.1]} 22.
Bh3+ {[%clk 0:02:07.5]} 22... Kc7 {[%clk 0:01:44.7]} 23. Rc1 {[%clk 0:02:08.7]}
23... b5 {[%clk 0:01:45.9]} 24. Bf1 {[%clk 0:02:09.7]} 24... Kd7 {[%clk
0:01:43.6]} 25. Bxc4 {[%clk 0:02:10.1]} 25... bxc4 {[%clk 0:01:44.8]} 26. Rxc4
{[%clk 0:02:11.4]} 26... Rdc8 {[%clk 0:01:45.6]} 27. Ra4 {[%clk 0:02:12.5]}
27... Rc7 {[%clk 0:01:36.6]} 28. Ra6 {[%clk 0:02:10.7]} 28... Rb6 {[%clk
0:01:37.2]} 29. Rxb6 {[%clk 0:02:10.7]} 29... axb6 {[%clk 0:01:38.5]} 30. Bb2
{[%clk 0:02:10.3]} 30... Ra7 {[%clk 0:01:36.8]} 31. Bd4 {[%clk 0:02:10.8]} 31...
Kc7 {[%clk 0:01:34.6]} 32. Rb2 {[%clk 0:02:09.5]} 32... Ra6 {[%clk 0:01:34.4]}
33. g4 {[%clk 0:02:06.7]} 33... Kb7 {[%clk 0:01:30.9]} 34. f3 {[%clk 0:02:06.2]}
34... Nc7 {[%clk 0:01:27.4]} 35. Kf2 {[%clk 0:02:07.4]} 35... b5 {[%clk
0:01:26.7]} 36. Kg3 {[%clk 0:02:08.4]} 36... Ra4 {[%clk 0:01:27.4]} 37. Bf6
{[%clk 0:02:07.2]} 37... Kc8 {[%clk 0:01:19.6]} 38. Kh4 {[%clk 0:02:08.4]} 38...
h6 {[%clk 0:01:19.7]} 39. Bg7 {[%clk 0:02:09.7]} 39... Ra3 {[%clk 0:01:04.7]}
40. Rf2 {[%clk 0:02:06.7]} 40... h5 {[%clk 0:00:53.8]} 41. gxh5 {[%clk
0:02:07.4]} 41... gxh5 {[%clk 0:00:55.2]} 42. Kxh5 {[%clk 0:02:08.9]} 42... Kd7
{[%clk 0:00:51.5]} 43. Kg5 {[%clk 0:02:07.5]} 43... Ne8 {[%clk 0:00:49.9]} 44.
Bf6 {[%clk 0:02:05.4]} 44... Rd3 {[%clk 0:00:26.4]} 45. h4 {[%clk 0:01:57.9]}
45... Rd1 {[%clk 0:00:27.5]} 46. Rh2 {[%clk 0:01:55.4]} 46... Rg1+ {[%clk
0:00:25.1]} 47. Kf5 {[%clk 0:01:56.7]} 47... Rg6 {[%clk 0:00:22.6]} 48. Bd4
{[%clk 0:01:57.6]} 48... Ke7 {[%clk 0:00:14.7]} 49. h5 {[%clk 0:01:58.6]} 49...
Rg3 {[%clk 0:00:14.9]} 50. h6 {[%clk 0:01:56.6]} 50... Rxf3+ {[%clk 0:00:13.6]}
51. Kg4 {[%clk 0:01:58]} 51... Rd3 {[%clk 0:00:07.9]} 52. Bb2 {[%clk 0:01:52.4]}
1-0

[Event "*** Titled Tuesday 3|2 Blitz"]
[Site "Chess.com"]
[Date "2015.11.03"]
[Round "1"]
[White "joppie2"]
[Black "metalbattler"]
[Result "1-0"]
[WhiteElo "2344"]
[BlackElo "1940"]
[TimeControl "180+2"]
[EndTime "11:08:13 PST"]
[Termination "joppie2 won by checkmate"]

1. e4 {[%clk 0:02:09]} 1... e5 {[%clk 0:02:58.6]} 2. Nf3 {[%clk 0:02:06.4]} 2...
Nc6 {[%clk 0:02:59.3]} 3. Bb5 {[%clk 0:02:06.1]} 3... Nf6 {[%clk 0:02:59.6]} 4.
d3 {[%clk 0:02:03.4]} 4... Bc5 {[%clk 0:02:59.8]} 5. O-O {[%clk 0:02:02.2]} 5...
d6 {[%clk 0:03:00.1]} 6. c3 {[%clk 0:02:02.2]} 6... O-O {[%clk 0:03:00.6]} 7.
Re1 {[%clk 0:02:03.5]} 7... Ne7 {[%clk 0:02:58]} 8. d4 {[%clk 0:02:03.6]} 8...
exd4 {[%clk 0:02:56.5]} 9. cxd4 {[%clk 0:02:05.5]} 9... Bb6 {[%clk 0:02:56.9]}
10. Nc3 {[%clk 0:02:03.7]} 10... Bg4 {[%clk 0:02:54.7]} 11. Be3 {[%clk
0:01:58.3]} 11... Ng6 {[%clk 0:02:50.1]} 12. h3 {[%clk 0:01:56.6]} 12... Bxf3
{[%clk 0:02:47.8]} 13. Qxf3 {[%clk 0:01:58.5]} 13... c6 {[%clk 0:02:44]} 14. Bd3
{[%clk 0:01:53.5]} 14... Re8 {[%clk 0:02:27.2]} 15. Rad1 {[%clk 0:01:52.6]}
15... d5 {[%clk 0:02:12.6]} 16. e5 {[%clk 0:01:52.8]} 16... Nd7 {[%clk
0:02:10.5]} 17. g3 {[%clk 0:01:53.6]} 17... Ndf8 {[%clk 0:01:14.9]} 18. h4
{[%clk 0:01:53.9]} 18... Ne6 {[%clk 0:01:11.5]} 19. h5 {[%clk 0:01:52.7]} 19...
Ngf8 {[%clk 0:01:08.2]} 20. Qg4 {[%clk 0:01:46.9]} 20... Qe7 {[%clk 0:00:32]}
21. Bc2 {[%clk 0:01:41.7]} 21... Rad8 {[%clk 0:00:31.1]} 22. Kg2 {[%clk
0:01:29.8]} 22... Qb4 {[%clk 0:00:31.8]} 23. Rd2 {[%clk 0:01:20.1]} 23... c5
{[%clk 0:00:27.2]} 24. a3 {[%clk 0:01:19.3]} 24... Qa5 {[%clk 0:00:27]} 25. dxc5
{[%clk 0:01:19.8]} 25... Bxc5 {[%clk 0:00:19.6]} 26. b4 {[%clk 0:01:09.3]} 26...
Qxa3 {[%clk 0:00:20.6]} 27. Nxd5 {[%clk 0:00:59.8]} 27... Rxd5 {[%clk
0:00:12.3]} 28. Rxd5 {[%clk 0:00:57.9]} 28... Bxb4 {[%clk 0:00:13.2]} 29. Red1
{[%clk 0:00:51.4]} 29... Qc3 {[%clk 0:00:12.3]} 30. Bf5 {[%clk 0:00:51]} 30...
Ba5 {[%clk 0:00:11.4]} 31. Qa4 {[%clk 0:00:49.1]} 31... Bb6 {[%clk 0:00:12]} 32.
Qxe8 {[%clk 0:00:49.4]} 32... Bxe3 {[%clk 0:00:11.3]} 33. Bxe6 {[%clk
0:00:50.4]} 33... fxe6 {[%clk 0:00:04.8]} 34. Qxf8+ {[%clk 0:00:50.1]} 34...
Kxf8 {[%clk 0:00:05.4]} 35. Rd8+ {[%clk 0:00:51.2]} 35... Ke7 {[%clk 0:00:03.2]}
36. R1d7# {[%clk 0:00:53.1]} 1-0

[Event "*** Titled Tuesday 3|2 Blitz"]
[Site "Chess.com"]
[Date "2015.11.03"]
[Round "1"]
[White "jup1978"]
[Black "jcibarra"]
[Result "0-1"]
[WhiteElo "2200"]
[BlackElo "2505"]
[TimeControl "180+2"]
[EndTime "11:08:17 PST"]
[Termination "jcibarra won by resignation"]

1. e4 {[%clk 0:02:58.7]} 1... c5 {[%clk 0:02:59.8]} 2. Nf3 {[%clk 0:03:00]} 2...
e6 {[%clk 0:03:01]} 3. g3 {[%clk 0:03:01.2]} 3... Nc6 {[%clk 0:03:00.3]} 4. Bg2
{[%clk 0:03:00.6]} 4... Nf6 {[%clk 0:03:01.6]} 5. e5 {[%clk 0:02:59.9]} 5... Ng4
{[%clk 0:03:00.9]} 6. O-O {[%clk 0:02:41.7]} 6... Ngxe5 {[%clk 0:03:00.6]} 7. c3
{[%clk 0:02:43.2]} 7... Nd3 {[%clk 0:02:53.1]} 8. Qe2 {[%clk 0:02:42.2]} 8...
Nxc1 {[%clk 0:02:51]} 9. Rxc1 {[%clk 0:02:44.1]} 9... Be7 {[%clk 0:02:52.1]} 10.
d4 {[%clk 0:02:43.2]} 10... d5 {[%clk 0:02:53.1]} 11. Nbd2 {[%clk 0:02:38.3]}
11... cxd4 {[%clk 0:02:52.2]} 12. Nxd4 {[%clk 0:02:35]} 12... O-O {[%clk
0:02:50.8]} 13. N2f3 {[%clk 0:02:32.8]} 13... Bf6 {[%clk 0:02:49]} 14. h4 {[%clk
0:02:30]} 14... Re8 {[%clk 0:02:40.8]} 15. Nxc6 {[%clk 0:02:23.5]} 15... bxc6
{[%clk 0:02:41.3]} 16. c4 {[%clk 0:02:25.4]} 16... Ba6 {[%clk 0:02:36.7]} 17.
Ne5 {[%clk 0:02:12.6]} 17... Qd6 {[%clk 0:02:24.4]} 18. Re1 {[%clk 0:02:11.2]}
18... Qxe5 {[%clk 0:02:06.8]} 19. Qxe5 {[%clk 0:02:13.1]} 19... Bxe5 {[%clk
0:02:08.5]} 20. Rxe5 {[%clk 0:02:13.7]} 20... Bxc4 {[%clk 0:02:10]} 21. b3
{[%clk 0:02:09.7]} 21... Ba6 {[%clk 0:02:08.3]} 22. Rc1 {[%clk 0:02:07.3]} 22...
Rac8 {[%clk 0:02:02.5]} 23. Rc5 {[%clk 0:02:06.8]} 23... Bb7 {[%clk 0:01:52.8]}
24. f4 {[%clk 0:02:03.8]} 24... Kf8 {[%clk 0:01:52.3]} 25. Re1 {[%clk
0:02:01.8]} 25... Ke7 {[%clk 0:01:52.6]} 26. b4 {[%clk 0:01:59.5]} 26... Kd6
{[%clk 0:01:53]} 27. Rec1 {[%clk 0:01:59.7]} 27... Re7 {[%clk 0:01:42.2]} 28.
Kf2 {[%clk 0:01:59.9]} 28... Ba6 {[%clk 0:01:40.5]} 29. a4 {[%clk 0:01:57.1]}
29... Bc4 {[%clk 0:01:37.9]} 30. Bf1 {[%clk 0:01:46.5]} 30... Bxf1 {[%clk
0:01:38.3]} 31. Kxf1 {[%clk 0:01:48.4]} 31... Rb7 {[%clk 0:01:37.5]} 32. Ra5
{[%clk 0:01:40.2]} 32... Rcc7 {[%clk 0:01:33.5]} 33. Rb1 {[%clk 0:01:35.5]}
33... Rb6 {[%clk 0:01:34.6]} 34. Ke2 {[%clk 0:01:34.9]} 34... Rcb7 {[%clk
0:01:24.9]} 35. b5 {[%clk 0:01:23.7]} 35... c5 {[%clk 0:01:23.7]} 36. Rc1 {[%clk
0:01:19]} 36... c4 {[%clk 0:01:23.7]} 37. Ke3 {[%clk 0:01:19.7]} 37... Kc5
{[%clk 0:01:24.8]} 38. g4 {[%clk 0:01:19.2]} 38... Kb4 {[%clk 0:01:21.3]} 39.
Ra6 {[%clk 0:01:19.3]} 39... Rxa6 {[%clk 0:01:22.6]} 40. bxa6 {[%clk 0:01:21.2]}
40... Rb6 {[%clk 0:01:21.4]} 41. Kd4 {[%clk 0:01:17.2]} 41... Ka5 {[%clk
0:01:13.1]} 42. f5 {[%clk 0:01:17.6]} 42... Kxa6 {[%clk 0:01:12.7]} 43. fxe6
{[%clk 0:01:18.4]} 43... fxe6 {[%clk 0:01:13.6]} 44. Rf1 {[%clk 0:01:19.6]}
44... Rb7 {[%clk 0:01:07.6]} 45. Re1 {[%clk 0:01:17.8]} 45... Rb6 {[%clk
0:01:00.4]} 46. Rf1 {[%clk 0:01:18.1]} 46... Rc6 {[%clk 0:01:01.1]} 47. Kc3
{[%clk 0:01:09.3]} 47... e5 {[%clk 0:01:00.3]} 48. Rf5 {[%clk 0:01:10.2]} 48...
d4+ {[%clk 0:01:01.1]} 49. Kc2 {[%clk 0:01:11.7]} 49... Rc5 {[%clk 0:00:58.2]}
50. g5 {[%clk 0:01:07.2]} 50... c3 {[%clk 0:00:58.9]} 0-1